bitfinex-derivatives/quotes_ETHF0:USTF0_20260128
["timestamp","ask_amount","ask_price","bid_price","bid_amount"]
[1769570876786,3.6706877,3003.7,3003.0,0.25153698]
[1769570876987,2.13604248,3004.0,3003.0,0.25153698]
[1769570877188,3.67068032,3003.9,3003.0,0.25153698]
[1769570877491,3.67068032,3003.8,3003.0,0.25153698]
[1769570877686,3.67068032,3003.7,3003.0,0.25153698]
[1769570877887,2.13604248,3004.0,3003.0,0.25153698]
[1769570878195,3.67086195,3003.9,3003.0,0.25153698]
[1769570878491,2.13604248,3004.0,3003.0,0.25153698]
[1769570878697,3.67103658,3003.9,3003.0,0.25153698]
[1769570878889,0.26961115,3004.0,3003.0,0.25153698]
[1769570879186,3.67103643,3003.9,3003.0,0.25153698]
[1769570879387,0.00253763,3004.1,3003.2,0.16311466]
[1769570879596,3.67139429,3004.0,3003.2,0.16311466]
[1769570879897,3.67139429,3003.9,3003.2,0.16311466]
[1769570880099,0.10648278,3004.1,3003.2,0.16311466]
[1769570880296,3.67185867,3004.0,3003.2,0.16311466]
[1769570880496,3.67185867,3003.9,3003.2,0.16311466]
[1769570880798,0.10673532,3004.1,3003.2,0.16311466]
[1769570880998,3.67185385,3004.0,3003.2,0.16311466]
[1769570881196,3.67185385,3003.9,3003.2,0.16311466]
[1769570881400,0.10673532,3004.1,3003.2,0.16311466]
[1769570881593,3.67293298,3004.0,3003.2,0.16311466]
[1769570881793,3.67293298,3003.9,3003.2,0.16311466]
[1769570881994,0.10673532,3004.1,3003.2,0.16311466]
[1769570882194,3.67306232,3004.0,3003.2,0.16311466]
[1769570882400,3.67306232,3003.9,3003.2,0.16311466]
[1769570882595,0.10673532,3004.1,3003.2,0.16311466]
[1769570882800,3.67321399,3004.0,3003.2,0.16311466]
[1769570883098,3.67321399,3003.9,3003.2,0.16311466]
[1769570883295,0.10673532,3004.1,3003.2,0.16311466]
[1769570883495,3.67322425,3004.0,3003.2,0.16311466]
[1769570883694,3.67322425,3003.9,3003.2,0.16311466]
[1769570883894,0.00253763,3004.1,3003.2,0.16311466]
[1769570884092,3.67325442,3004.0,3003.2,0.16311466]
[1769570884293,3.67325442,3003.9,3003.2,0.16311466]
[1769570884597,0.00253763,3004.1,3003.2,0.16311466]
[1769570884803,3.67282088,3004.0,3003.2,0.16311466]
[1769570885101,3.67282088,3003.9,3003.2,0.16311466]
[1769570885397,0.00253763,3004.1,3003.2,0.16311466]
[1769570885600,3.67199498,3004.0,3003.2,0.16311466]
[1769570885795,3.67199498,3003.9,3003.2,0.16311466]
[1769570885994,0.00253763,3004.1,3003.2,0.16311466]
[1769570886195,3.67192544,3004.0,3003.2,0.16311466]
[1769570886392,3.67192544,3003.9,3003.2,0.16311466]
[1769570886601,0.00253763,3004.1,3003.2,0.16311466]
[1769570886794,3.67194458,3004.0,3003.2,0.16311466]
[1769570886989,0.00253763,3004.1,3003.2,0.16311466]
[1769570887198,3.6720649,3004.0,3003.2,0.16311466]
[1769570887399,0.00253763,3004.1,3003.2,0.16311466]
[1769570887588,3.67203557,3004.0,3003.2,0.16311466]
[1769570887797,0.00253763,3004.1,3003.2,0.16311466]
[1769570887994,3.67203516,3004.0,3003.2,0.16311466]
[1769570888295,0.00253763,3004.1,3003.4,0.16311466]
[1769570890605,0.00253763,3004.1,3003.6,0.16311466]
[1769570894206,0.09935192,3004.1,3003.4,0.16311466]
[1769570895801,0.09615144,3003.9,3003.2,0.16311466]
[1769570900013,0.09859219,3004.1,3003.2,0.16311466]
[1769570900219,3.67033665,3004.0,3003.2,0.16311466]
[1769570900512,3.67033665,3003.9,3003.2,0.16311466]
[1769570900710,0.09859219,3004.1,3003.2,0.16311466]
[1769570900915,3.67030732,3004.0,3003.2,0.16311466]
[1769570901213,3.67030732,3003.9,3003.2,0.16311466]
[1769570901415,0.09859219,3004.1,3003.2,0.16311466]
[1769570901706,0.0956424,3003.9,3003.0,0.16673061]
[1769570907217,0.09492968,3004.1,3003.0,0.16673061]
[1769570908820,0.09492968,3004.1,3003.2,0.15256441]
[1769570911423,0.00253763,3004.1,3003.2,0.15256441]
[1769570912121,0.08965269,3004.1,3003.2,0.15256441]
[1769570912918,0.08965269,3004.1,3003.4,0.15256441]
[1769570915219,0.00253763,3004.1,3003.4,0.15256441]
[1769570915821,0.08620102,3004.1,3003.4,0.15256441]
[1769570918222,3.65507471,3004.0,3003.4,0.15256441]
[1769570918525,0.08620102,3004.1,3003.4,0.15256441]
[1769570918728,3.65508309,3004.0,3003.4,0.15256441]
[1769570918916,0.08620102,3004.1,3003.4,0.15256441]
[1769570919217,3.65508309,3004.0,3003.4,0.15256441]
[1769570919422,0.08620102,3004.1,3003.4,0.15256441]
[1769570919725,3.65516414,3004.0,3003.4,0.15256441]
[1769570919923,0.08620102,3004.1,3003.4,0.15256441]
[1769570920123,3.655217,3004.0,3003.4,0.15256441]
[1769570920425,0.08620102,3004.1,3003.4,0.15256441]
[1769570920626,3.65536802,3004.0,3003.4,0.15256441]
[1769570920811,0.08620102,3004.1,3003.4,0.15256441]
[1769570921016,3.65536802,3004.0,3003.4,0.15256441]
[1769570921216,0.08620102,3004.1,3003.4,0.15256441]
[1769570921418,3.65586911,3004.0,3003.4,0.15256441]
[1769570921622,0.08620102,3004.1,3003.4,0.15256441]
[1769570921822,3.65588238,3004.0,3003.4,0.15256441]
[1769570922024,0.08620102,3004.1,3003.4,0.15256441]
[1769570922328,3.65757649,3004.0,3003.4,0.15256441]
[1769570924425,0.00253763,3004.1,3003.8,0.15256441]
[1769570926033,0.25010283,3004.5,3003.8,0.15256441]
[1769570926825,0.08345283,3004.5,3003.8,0.15256441]
[1769570927130,0.08584854,3004.5,3003.8,0.15256441]
[1769570927728,0.00239571,3004.5,3003.8,0.15256441]
[1769570927921,0.00239571,3004.5,3003.8,2.01899574]
[1769570928128,0.00239571,3004.5,3003.9,0.15256441]
[1769570930833,0.24972786,3005.1,3004.1,0.15256441]
[1769570931033,0.24972786,3005.1,3004.3,0.15256441]
[1769570931925,0.25294682,3005.1,3004.3,0.15256441]
[1769570932333,0.08538412,3005.0,3004.0,0.15256441]
[1769570933631,0.16983896,3005.1,3004.1,0.15256441]
[1769570933833,0.16983896,3005.1,3004.2,1.86643133]
[1769570934131,0.16983896,3005.1,3004.3,0.15256441]
[1769570935629,0.00321896,3005.1,3004.3,0.15256441]
[1769570945344,0.09606409,3005.1,3004.3,0.15256441]
[1769570945543,0.09606409,3005.1,3003.8,0.15720032]
[1769570948550,0.09227901,3005.0,3003.8,0.15720032]
[1769570948745,0.09204366,3004.8,3003.8,0.15720032]
[1769570950745,1.86495908,3004.9,3003.8,0.15720032]
[1769570951349,0.08732945,3004.8,3003.8,0.15720032]
[1769570955356,1.86495908,3004.9,3003.8,0.15720032]
[1769570956352,1.95019568,3004.9,3003.8,0.15720032]
[1769570957554,1.86495908,3004.9,3003.8,0.15720032]
[1769570958254,3.62844399,3004.8,3003.8,0.15720032]
[1769570958456,1.86495908,3004.9,3003.8,0.15720032]
[1769570958652,3.62849394,3004.8,3003.8,0.15720032]
[1769570958955,0.25486425,3005.1,3003.8,0.15720032]
[1769570959157,3.62875334,3005.0,3003.8,0.15720032]
[1769570959356,3.62875334,3004.9,3003.8,0.15720032]
[1769570959555,3.62875334,3004.8,3003.8,0.15720032]
[1769570959758,3.62875334,3004.7,3003.8,0.15720032]
[1769570959950,0.25486425,3005.1,3003.8,0.15720032]
[1769570960150,3.6292009,3005.0,3003.8,0.15720032]
[1769570960353,3.6292009,3004.9,3003.8,0.15720032]
[1769570960564,3.6292009,3004.8,3003.8,0.15720032]
[1769570960853,3.6292009,3004.7,3003.8,0.15720032]
[1769570961060,0.08498259,3005.0,3003.8,0.15720032]
[1769570961259,3.63030376,3004.9,3003.8,0.15720032]
[1769570961453,3.63030376,3004.8,3003.8,0.15720032]
[1769570961660,3.63030376,3004.7,3003.8,0.15720032]
[1769570961854,0.08498259,3005.0,3003.8,0.15720032]
[1769570962154,3.63030349,3004.9,3003.8,0.15720032]
[1769570962354,3.63030349,3004.8,3003.8,0.15720032]
[1769570962655,3.63030349,3004.7,3003.8,0.15720032]
[1769570962851,0.08498259,3005.0,3003.8,0.15720032]
[1769570963051,3.62150459,3004.9,3003.8,0.15720032]
[1769570963250,3.62150459,3004.8,3003.8,0.15720032]
[1769570963455,3.62150459,3004.7,3003.8,0.15720032]
[1769570963657,0.08498259,3005.0,3003.8,0.15720032]
[1769570963858,3.61954105,3004.9,3003.8,0.15720032]
[1769570964055,3.61954105,3004.8,3003.8,0.15720032]
[1769570964359,3.61954105,3004.7,3003.8,0.15720032]
[1769570964561,0.08498259,3005.0,3003.8,0.15720032]
[1769570964858,3.61026122,3004.9,3003.8,0.15720032]
[1769570965058,3.61026122,3004.8,3003.8,0.15720032]
[1769570965259,3.61026122,3004.7,3003.8,0.15720032]
[1769570965455,0.08498259,3005.0,3003.8,0.15720032]
[1769570965655,3.61022246,3004.9,3003.8,0.15720032]
[1769570965862,3.61022246,3004.8,3003.8,0.15720032]
[1769570966062,3.61022246,3004.7,3003.8,0.15720032]
[1769570966361,0.08498259,3005.0,3003.8,0.15720032]
[1769570966562,3.61018469,3004.9,3003.8,0.15720032]
[1769570966859,3.61018469,3004.8,3003.8,0.15720032]
[1769570967064,3.61018469,3004.7,3003.8,0.15720032]
[1769570967264,0.08498259,3005.0,3003.8,0.15720032]
[1769570967462,3.61025341,3004.9,3003.8,0.15720032]
[1769570967760,0.08498259,3005.0,3003.8,0.15720032]
[1769570967961,3.61044744,3004.9,3003.8,0.15720032]
[1769570968262,0.08498259,3005.0,3003.8,0.15720032]
[1769570968462,3.69448571,3004.9,3003.8,0.15720032]
[1769570968663,0.08393321,3004.9,3003.8,0.15720032]
[1769570985768,0.00321896,3005.1,3003.8,0.15720032]
[1769570985769,0.08421759,3005.1,3003.8,0.15720032]
[1769570986070,3.61366175,3005.0,3003.8,0.15720032]
[1769570986267,3.61366175,3004.9,3003.8,0.15720032]
[1769570986467,0.08421759,3005.1,3003.8,0.15720032]
[1769570986667,3.61382544,3005.0,3003.8,0.15720032]
[1769570986872,3.61382544,3004.9,3003.8,0.15720032]
[1769570987060,0.08421759,3005.1,3003.8,0.15720032]
[1769570987263,3.61391915,3005.0,3003.8,0.15720032]
[1769570987572,3.61391915,3004.9,3003.8,0.15720032]
[1769570987773,0.08421759,3005.1,3003.8,0.15720032]
[1769570988068,3.61391915,3005.0,3003.8,0.15720032]
[1769570988274,3.61391915,3004.9,3003.8,0.15720032]
[1769570992467,3.69569377,3004.9,3003.8,0.15720032]
[1769570992764,0.08177462,3004.9,3003.8,0.15720032]
[1769570995674,0.08177462,3004.9,3004.0,0.14675191]
[1769571000373,0.08177462,3004.9,3004.0,0.05000558]
[1769571004577,0.08177462,3004.9,3003.3,1.86500745]
[1769571004578,0.14538521,3004.3,3003.1,1.86500745]
[1769571004783,0.14538521,3004.3,3003.4,0.14675191]
[1769571005479,0.14538521,3004.3,3003.6,0.14675191]
[1769571005681,0.14538521,3004.7,3003.8,0.14675191]
[1769571006894,1.86500745,3005.0,3003.3,0.16672]
[1769571006895,0.14538521,3005.0,3004.1,0.14675191]
[1769571007095,0.14538521,3005.0,3004.2,2.01175936]
[1769571007393,0.14538521,3005.0,3004.2,0.14675191]
[1769571008097,0.14538521,3004.8,3004.2,0.14675191]
[1769571008392,0.14538521,3004.8,3003.9,0.14675191]
[1769571015304,3.7381399,3004.7,3003.9,0.14675191]
[1769571015506,0.14538521,3004.7,3003.9,0.14675191]
[1769571019006,0.14538521,3005.0,3003.9,0.14675191]
[1769571019207,3.5917156,3004.9,3003.9,0.14675191]
[1769571019408,0.14538521,3005.0,3003.9,0.14675191]
[1769571019608,3.59159142,3004.9,3003.9,0.14675191]
[1769571019809,0.14538521,3005.0,3003.9,0.14675191]
[1769571020012,3.59159165,3004.9,3003.9,0.14675191]
[1769571020209,0.14538521,3005.0,3003.9,0.14675191]
[1769571020511,3.59179858,3004.9,3003.9,0.14675191]
[1769571020809,0.14538521,3005.0,3003.9,0.14675191]
[1769571020998,3.59199767,3004.9,3003.9,0.14675191]
[1769571021307,0.14538521,3004.9,3003.9,0.14675191]
[1769571026512,0.14830245,3004.7,3003.9,0.14675191]
[1769571027508,1.86500745,3004.6,3003.7,0.14808207]
[1769571027712,0.14830245,3004.5,3003.7,0.14808207]
[1769571029615,0.14830245,3004.9,3003.9,0.14808207]
[1769571030409,0.14830245,3004.7,3003.9,0.14808207]
[1769571036410,0.14830245,3004.7,3003.5,0.14808207]
[1769571037419,0.14830245,3004.7,3003.7,0.14808207]
[1769571050324,0.14830245,3004.3,3003.5,0.14808207]
[1769571053524,0.31494245,3004.8,3003.7,0.14808207]
[1769571053722,3.72583793,3004.7,3003.7,0.14808207]
[1769571054029,3.57753548,3004.6,3003.7,0.14808207]
[1769571054329,0.14830245,3004.7,3003.7,0.14808207]
[1769571054520,3.71973445,3004.6,3003.7,0.14808207]
[1769571054725,0.14247944,3004.6,3003.7,0.14808207]
[1769571060727,0.14247944,3004.6,3003.2,0.16673]
[1769571060932,0.14247944,3004.6,3003.3,0.14235552]
[1769571064032,0.14247944,3004.6,3003.2,0.16673]
[1769571064033,0.14247944,3004.1,3003.1,0.14235552]
[1769571064233,0.14247944,3004.1,3003.0,0.00361595]
[1769571064431,0.14247944,3003.5,3003.0,0.00361595]
[1769571064737,0.14247944,3003.5,3002.7,3.47535552]
[1769571064937,0.14247944,3003.5,3002.8,0.14235552]
[1769571065238,0.1667,3003.6,3002.8,0.14235552]
[1769571065638,0.14247944,3003.5,3002.8,0.00409016]
[1769571065835,0.14247944,3003.2,3001.6,0.14235552]
[1769571066736,0.14247944,3003.2,3001.6,0.1448465]
[1769571067240,0.14247944,3003.1,3001.6,0.1448465]
[1769571067442,0.14247944,3003.0,3001.6,0.1448465]
[1769571068542,0.14247944,3002.8,3001.6,0.1448465]
[1769571068843,0.14247944,3002.7,3001.6,0.1448465]
[1769571069042,0.14247944,3002.7,3001.6,0.00249098]
[1769571069242,0.14247944,3002.6,3001.6,0.00249098]
[1769571077251,0.30923944,3002.6,3001.6,0.00249098]
[1769571077544,0.14247944,3002.5,3001.6,0.00249098]
[1769571079545,0.14247944,3002.0,3000.8,0.14235552]
[1769571080543,0.14247944,3002.0,3000.8,0.14658547]
[1769571089555,0.14016634,3001.7,3000.8,0.00422995]
[1769571090355,0.14016634,3001.7,3000.8,0.15026754]
[1769571090555,0.14016634,3001.7,3000.8,0.00422995]
[1769571090755,0.14016634,3001.7,3000.8,0.15026754]
[1769571091763,0.16681,3001.8,3001.0,0.14603759]
[1769571095070,0.14016634,3002.3,3001.0,0.14603759]
[1769571095267,0.14016634,3002.3,3001.4,0.14603759]
[1769571097275,0.14016634,3002.1,3001.4,0.14603759]
[1769571098073,0.14016634,3002.1,3001.1,0.14603759]
[1769571098275,3.61544026,3002.0,3001.1,0.14603759]
[1769571098475,0.14016634,3001.9,3001.1,0.14603759]
[1769571099170,0.14016634,3001.9,3000.8,0.00422995]
[1769571099373,0.14016634,3001.9,3000.9,0.14603759]
[1769571100074,0.16678,3002.2,3000.9,0.14603759]
[1769571100271,3.61592015,3002.1,3000.9,0.14603759]
[1769571100574,3.61592015,3002.0,3000.9,0.14603759]
[1769571100775,0.30694634,3002.2,3000.9,0.14603759]
[1769571100972,0.14016634,3002.0,3000.9,0.14603759]
[1769571101176,0.14016634,3001.8,3000.9,0.14603759]
[1769571101371,3.61644122,3001.7,3000.9,0.14603759]
[1769571101578,0.16679,3002.0,3000.9,0.14603759]
[1769571104081,0.30695634,3002.0,3000.9,0.14603759]
[1769571105683,0.14016634,3002.0,3000.9,0.14603759]
[1769571110179,0.14016634,3002.4,3000.9,0.14603759]
[1769571110481,0.14016634,3002.4,3001.0,0.14603759]
[1769571111676,0.14016634,3002.4,3001.1,0.14603759]
[1769571112885,0.14016634,3002.7,3001.1,0.14603759]
[1769571113574,0.14016634,3002.5,3001.1,0.14603759]
[1769571113884,3.72953885,3002.4,3001.1,0.14603759]
[1769571114085,0.14016634,3002.3,3001.1,0.14603759]
[1769571119793,2.00844495,3002.3,3001.1,0.14603759]
[1769571120087,0.14481056,3002.2,3001.1,0.14603759]
[1769571121088,1.86827861,3002.3,3001.1,0.14603759]
[1769571121685,0.14481056,3002.4,3001.1,0.14603759]
[1769571123196,0.14481056,3002.6,3001.5,0.14636673]
[1769571124094,0.00366271,3002.8,3001.9,0.14636673]
[1769571124997,0.14847327,3002.8,3001.9,0.14636673]
[1769571125194,2.01308917,3002.7,3001.9,0.14636673]
[1769571125798,2.01308917,3002.3,3001.6,0.14636673]
[1769571126094,0.14481056,3002.2,3001.4,0.14636673]
[1769571126483,2.01308917,3002.7,3001.5,0.14636673]
[1769571127294,0.14481056,3002.6,3001.5,0.14636673]
[1769571129200,0.14481056,3002.6,3001.7,0.14636673]
[1769571130594,0.14481056,3002.4,3001.5,0.14636673]
[1769571133301,0.14481056,3002.0,3001.3,2.10236673]
[1769571133490,0.14481056,3002.2,3001.4,0.14636673]
[1769571134202,1.86827861,3002.6,3001.4,0.14636673]
[1769571134406,0.16675,3002.7,3001.6,0.14636673]
[1769571134407,0.14481056,3002.7,3001.6,0.14636673]
[1769571134800,0.14481056,3002.6,3001.6,0.14636673]
[1769571137893,0.14847327,3002.8,3001.6,0.14636673]
[1769571139306,0.14847327,3002.8,3001.8,0.14636673]
[1769571140904,0.00366271,3002.8,3002.0,0.14636673]
[1769571141110,0.00117175,3002.8,3002.2,0.14636673]
[1769571141407,0.14481056,3003.1,3002.2,0.14636673]
[1769571142216,0.14481056,3003.0,3002.2,0.14636673]
[1769571145116,0.0023651,3003.1,3002.2,0.14636673]
[1769571145910,0.14958889,3003.1,3002.2,0.14636673]
[1769571162727,0.0023651,3003.1,3002.5,1.86827861]
[1769571163030,0.14722379,3003.5,3002.8,0.14074468]
[1769571163833,0.1506865,3003.5,3002.8,0.14074468]
[1769571164137,0.00346271,3003.5,3003.0,0.14074468]
[1769571164431,0.00346271,3003.5,3003.0,0.144314]
[1769571167043,0.1506865,3003.5,3003.0,0.00356932]
[1769571167231,0.14722379,3003.3,3002.6,0.30750468]
[1769571167428,0.14722379,3003.3,3002.6,2.26250468]
[1769571167630,0.14722379,3003.3,3002.6,0.14074468]
[1769571168325,0.14722379,3003.3,3002.6,0.14463537]
[1769571178039,0.14760601,3003.5,3002.6,0.14463537]
[1769571182537,0.00346271,3003.5,3002.6,0.14463537]
[1769571185442,0.1441433,3003.7,3002.6,0.14463537]
[1769571186549,0.14807926,3003.7,3002.7,0.13587065]
[1769571187048,0.00393596,3003.7,3002.7,0.13587065]
[1769571187445,0.00393596,3003.7,3002.7,0.30262065]
[1769571187644,0.00393596,3003.7,3003.0,0.13587065]
[1769571187838,0.1441433,3004.1,3003.0,0.13587065]
[1769571188751,0.00362347,3004.1,3003.1,0.13587065]
[1769571188955,0.00362347,3004.1,3003.2,0.13587065]
[1769571189149,0.1441433,3004.5,3003.3,0.13587065]
[1769571189449,0.1441433,3004.5,3003.5,0.13587065]
[1769571190153,0.14731963,3004.5,3003.5,0.13587065]
[1769571213383,0.14731963,3004.5,3003.6,2.004]
[1769571213776,0.14731963,3004.5,3003.6,2.14856869]
[1769571213973,0.14731963,3004.5,3003.6,0.14456869]
[1769571219286,0.00317633,3004.5,3003.6,0.14456869]
[1769571219687,0.14625467,3004.5,3003.6,0.14456869]
[1769571220086,0.14625467,3004.5,3003.6,2.14656869]
[1769571221484,1.86655475,3005.1,3003.6,2.14656869]
[1769571221689,3.4770912,3005.0,3003.7,0.14456869]
[1769571221983,3.4770912,3004.9,3003.7,0.14456869]
[1769571222186,1.86655475,3005.1,3003.7,0.14456869]
[1769571222384,3.47743823,3005.0,3003.7,0.14456869]
[1769571222682,3.47743823,3004.9,3003.7,0.14456869]
[1769571222882,1.86968632,3005.1,3003.7,0.14456869]
[1769571223073,3.47752273,3005.0,3003.7,0.14456869]
[1769571223277,3.47752273,3004.9,3003.7,0.14456869]
[1769571223476,0.14307834,3004.9,3003.7,0.14456869]
[1769571237897,0.14307834,3004.9,3003.8,0.14048277]
[1769571238194,0.14373179,3005.1,3003.8,0.14048277]
[1769571241598,0.14373179,3005.1,3004.1,0.14048277]
[1769571242305,0.14373179,3005.1,3004.3,0.14048277]
[1769571242596,0.00313157,3005.1,3004.3,0.14048277]
[1769571242791,0.14060022,3005.5,3004.7,0.14048277]
[1769571242995,0.14060022,3005.7,3004.9,0.14048277]
[1769571243909,0.14414026,3005.7,3004.9,0.1438188]
[1769571245408,0.00354004,3005.7,3004.9,0.1438188]
[1769571245904,0.00354004,3005.7,3005.1,0.14048277]
[1769571246207,0.14060022,3006.2,3005.3,0.14048277]
[1769571247204,0.14463148,3006.2,3005.3,0.14048277]
[1769571248010,0.14463148,3006.2,3004.9,0.16996603]
[1769571248011,0.00403126,3006.2,3005.5,0.14048277]
[1769571248598,0.14060022,3006.6,3005.7,0.14048277]
[1769571249604,0.14416131,3006.6,3005.7,0.14048277]
[1769571251925,0.14416131,3006.6,3005.9,0.14048277]
[1769571252215,0.00356109,3006.6,3005.9,0.14048277]
[1769571253908,0.16643,3008.5,3006.6,0.14048277]
[1769571254111,0.16641,3008.9,3007.7,0.14048277]
[1769571254306,1.86470287,3008.7,3007.2,0.14048277]
[1769571254512,1.86470287,3008.7,3006.3,0.16655]
[1769571254707,1.86470287,3008.7,3007.0,0.14048277]
[1769571254914,1.86879575,3008.7,3007.0,0.143961]
[1769571255615,1.86470287,3008.3,3007.1,0.14048277]
[1769571255918,0.0420845,3008.4,3007.3,0.14048277]
[1769571257314,0.00409288,3008.7,3007.0,0.00347823]
[1769571257315,0.04253211,3008.0,3007.1,0.14048277]
[1769571259812,1.90479621,3008.3,3007.1,0.14048277]
[1769571260321,0.04008781,3008.2,3007.1,0.14048277]
[1769571261224,0.04008781,3008.2,3007.3,0.14048277]
[1769571261417,1.86470287,3008.5,3007.3,0.14048277]
[1769571261622,0.03877896,3008.6,3007.5,0.14048277]
[1769571261821,0.03877896,3008.6,3007.0,0.00347823]
[1769571261822,0.03877896,3008.6,3007.7,0.14048277]
[1769571262123,0.00409288,3008.7,3007.7,0.14048277]
[1769571263121,0.04108978,3008.7,3007.7,0.14048277]
[1769571263416,0.0369969,3008.6,3007.7,0.14048277]
[1769571263617,0.0369969,3008.4,3007.4,2.09348277]
[1769571264015,0.0369969,3008.4,3007.5,0.14048277]
[1769571265322,0.00409288,3008.7,3007.7,0.14003328]
[1769571265721,0.00409288,3008.7,3007.9,0.14003328]
[1769571267123,0.00409288,3008.7,3007.6,1.86470287]
[1769571267124,0.03180312,3008.6,3007.6,0.14003328]
[1769571267319,1.89650599,3008.5,3007.6,0.14003328]
[1769571267712,1.89650599,3008.1,3007.3,0.14003328]
[1769571268017,1.89650599,3008.1,3006.8,1.86470287]
[1769571268018,1.86470287,3007.9,3007.0,0.14351151]
[1769571269025,1.89650599,3008.1,3007.0,0.14351151]
[1769571269618,0.03230565,3008.4,3007.0,0.14351151]
[1769571269823,0.16643,3008.5,3007.0,0.14351151]
[1769571269824,0.19873095,3008.5,3007.0,0.14351151]
[1769571272828,0.03230095,3008.5,3007.0,0.14351151]
[1769571273226,0.00409288,3008.7,3007.0,0.14351151]
[1769571273426,0.00409288,3008.7,3007.1,0.16651]
[1769571273725,0.00409288,3008.7,3007.2,0.14003328]
[1769571274128,0.00409288,3008.7,3007.3,0.14003328]
[1769571275830,0.00409288,3008.7,3007.5,0.14003328]
[1769571276431,0.00409288,3008.7,3007.6,0.14003328]
[1769571276631,0.00409288,3008.7,3007.8,0.14003328]
[1769571278237,0.03423737,3009.5,3007.8,0.14003328]
[1769571278934,0.03423737,3009.5,3008.0,0.14003328]
[1769571279140,0.03786756,3009.5,3008.1,0.14003328]
[1769571279332,0.03786756,3009.5,3008.1,2.089]
[1769571279537,0.03786756,3009.5,3008.2,0.14003328]
[1769571279939,0.00363019,3009.5,3008.2,0.14003328]
[1769571281346,0.00363019,3009.5,3008.2,0.30648328]
[1769571281544,0.00363019,3009.5,3008.3,0.14003328]
[1769571283934,0.00363019,3009.5,3008.4,0.14003328]
[1769571285443,0.00363019,3009.5,3008.6,0.14003328]
[1769571286346,0.03953001,3009.5,3008.6,0.14003328]
[1769571287752,0.03953001,3009.5,3008.3,0.30647328]
[1769571287953,0.03953001,3009.5,3008.4,0.14003328]
[1769571293657,1.85966826,3009.3,3008.4,0.14003328]
[1769571294557,1.89919827,3009.5,3008.4,0.14003328]
[1769571294760,0.00363019,3009.5,3008.4,0.14003328]
[1769571295461,0.00363019,3009.5,3008.6,0.13796585]
[1769571298060,1.85966826,3009.1,3008.2,0.13796585]
[1769571298265,1.85966826,3009.1,3008.4,0.13796585]
[1769571299162,1.85966826,3008.9,3008.4,0.13796585]
[1769571299663,0.03411122,3009.1,3008.4,0.13796585]
[1769571301263,0.03208068,3009.4,3008.4,0.13796585]
[1769571302859,0.00363019,3009.5,3008.4,0.13796585]
[1769571311071,0.00363019,3009.5,3008.6,0.13796585]
[1769571320770,0.16633,3010.5,3009.1,0.13796585]
[1769571321075,3.1552677,3010.4,3009.1,0.13796585]
[1769571321373,0.02980804,3010.4,3009.3,0.13796585]
[1769571321766,0.03329243,3010.4,3009.3,0.14192398]
[1769571328079,0.00348439,3010.4,3009.3,0.14192398]
[1769571331176,0.00348439,3010.4,3009.6,0.14765732]
[1769571339291,0.03411151,3009.9,3009.3,0.00395813]
[1769571339486,0.20047151,3009.9,3008.7,0.14765732]
[1769571339887,0.16636,3009.9,3008.7,0.14765732]
[1769571340186,0.16636,3009.9,3008.8,0.14765732]
[1769571340388,0.16636,3009.9,3008.8,0.15137613]
[1769571342892,0.01850319,3009.8,3008.8,0.15137613]
[1769571344593,0.01850139,3009.6,3008.8,0.00371881]
[1769571344795,0.18487139,3009.6,3008.8,0.00371881]
[1769571345800,0.16637,3009.6,3008.8,0.15137613]
[1769571350004,0.00348439,3010.4,3008.2,4.96311998]
[1769571350005,0.13721445,3009.2,3008.2,4.96311998]
[1769571350304,0.13721445,3009.2,3007.9,4.96311998]
[1769571351102,0.13721445,3009.2,3007.9,4.96672244]
[1769571351301,0.13721445,3009.2,3007.9,0.00360246]
[1769571351999,0.13721445,3009.2,3008.0,0.14765732]
[1769571354104,0.16639,3009.3,3008.1,0.14765732]
[1769571354409,0.13721445,3009.7,3008.5,0.14765732]
[1769571354908,0.14441222,3009.4,3008.5,0.14765732]
[1769571355103,0.16638,3009.5,3008.5,0.14765732]
[1769571356598,0.14441222,3010.0,3008.5,0.14765732]
[1769571358109,0.14441222,3010.0,3008.7,0.14237701]
[1769571361303,0.31076222,3010.0,3008.7,0.14237701]
[1769571361504,0.14441222,3009.9,3008.7,0.14237701]
[1769571361713,0.14441222,3009.8,3008.7,0.14237701]
[1769571362111,0.16636,3009.9,3008.7,0.14237701]
[1769571362509,0.31077222,3009.9,3008.7,0.14237701]
[1769571362704,0.14441222,3010.1,3008.7,0.14237701]
[1769571363809,0.14441222,3010.0,3008.7,0.14237701]
[1769571364817,0.14441222,3009.9,3008.7,0.14237701]
[1769571367116,0.31077222,3009.9,3008.7,0.14237701]
[1769571367323,0.14441222,3009.3,3008.5,0.14237701]
[1769571367621,0.14441222,3009.3,3008.2,0.14237701]
[1769571368716,1.951,3009.8,3008.2,0.14237701]
[1769571368717,0.14441222,3009.1,3008.2,0.14237701]
[1769571368916,0.14441222,3009.0,3008.0,0.14237701]
[1769571373525,0.14441222,3010.0,3008.0,0.14237701]
[1769571373729,0.14441222,3009.4,3008.1,0.14237701]
[1769571374221,0.14441222,3009.3,3008.1,0.14237701]
[1769571374425,0.14441222,3009.1,3007.9,5.10909945]
[1769571374731,0.14441222,3009.0,3007.9,0.14597947]
[1769571375529,0.14441222,3008.9,3007.9,0.14597947]
[1769571376732,0.14441222,3008.8,3007.9,0.14597947]
[1769571378328,0.14441222,3008.7,3007.9,0.00360246]
[1769571378526,0.14441222,3008.5,3007.4,0.14237701]
[1769571379725,0.14441222,3008.5,3007.4,0.14611264]
[1769571379929,0.14441222,3008.5,3007.5,1.86086507]
[1769571380132,0.14441222,3008.5,3007.6,0.14237701]
[1769571380736,0.16643,3008.6,3007.8,0.14237701]
[1769571382834,0.16643,3008.6,3007.9,1.86086507]
[1769571383040,0.16643,3008.6,3007.9,2.00324208]
[1769571384235,0.16643,3008.6,3008.1,1.86086507]
[1769571387240,0.16643,3008.6,3008.2,0.14411089]
[1769571387441,0.14394634,3009.3,3008.5,1.86086507]
[1769571388138,0.1664,3009.2,3008.9,2.00497596]
[1769571388334,0.14394634,3009.6,3008.4,1.86086507]
[1769571388538,0.14394634,3009.1,3008.3,0.14411089]
[1769571389039,0.31034634,3009.1,3008.3,0.14411089]
[1769571389838,0.1664,3009.1,3008.4,2.00497596]
[1769571390137,0.1664,3009.1,3008.7,0.14411089]
[1769571390333,0.14394634,3009.5,3008.8,1.86086507]
[1769571390541,0.31031634,3009.7,3009.0,1.73415251]
[1769571390729,0.31031634,3009.7,3009.0,1.60736775]
[1769571390931,0.31031634,3009.7,3008.8,2.00497596]
[1769571391642,0.16637,3009.6,3008.8,2.00497596]
[1769571391940,0.16638,3009.4,3008.5,0.14411089]
[1769571392130,0.31032634,3009.4,3008.5,0.14411089]
[1769571393334,0.31032634,3009.4,3008.6,2.00497596]
[1769571393529,0.16638,3009.4,3008.7,0.14411089]
[1769571394239,0.16638,3009.4,3008.8,2.00497596]
[1769571394541,0.16638,3009.4,3008.9,0.14411089]
[1769571395639,0.16638,3009.4,3009.1,0.14411089]
[1769571395840,42.89594634,3009.9,3009.1,0.14411089]
[1769571396437,1.952,3009.9,3009.2,2.00497596]
[1769571396638,1.952,3009.9,3009.2,0.14411089]